bitfinex/quotes_BTCUSD_20220226
["timestamp","ask_amount","ask_price","bid_price","bid_amount"]
[1645881401418,0.17916601,39173.0,39170.0,0.135]
[1645881401617,0.377517,39172.0,39170.0,0.135]
[1645881401819,1.26346601,39173.0,39170.0,0.135]
[1645881402021,0.377517,39172.0,39170.0,0.135]
[1645881402216,0.677517,39171.0,39170.0,0.135]
[1645881402817,1.461817,39171.0,39170.0,0.135]
[1645881404668,1.162817,39171.0,39170.0,0.135]
[1645881404865,1.162817,39171.0,39166.0,0.00030039]
[1645881405065,1.161817,39170.0,39169.0,0.32285928]
[1645881405265,0.377517,39170.0,39169.0,0.32285928]
[1645881405668,0.377517,39170.0,39160.0,0.1]
[1645881405867,0.001,39171.0,39170.0,0.135]
[1645881406468,0.012,39180.0,39171.0,0.02565]
[1645881406667,0.012,39180.0,39178.0,0.135]
[1645881408068,0.012,39180.0,39179.0,0.377517]
[1645881408718,0.012,39180.0,39179.0,0.404167]
[1645881410118,0.012,39180.0,39179.0,0.403167]
[1645881410318,0.012,39180.0,39179.0,0.377517]
[1645881410717,0.012,39180.0,39179.0,0.378517]
[1645881411920,0.012,39180.0,39179.0,0.377517]
[1645881412365,0.012,39180.0,39178.0,0.135]
[1645881412765,0.012,39180.0,39179.0,0.001]
[1645881413967,0.012,39180.0,39178.0,0.135]
[1645881414770,0.013,39180.0,39178.0,0.135]
[1645881414969,0.013,39180.0,39179.0,0.377517]
[1645881415369,0.013,39180.0,39178.0,0.135]
[1645881415569,0.013,39180.0,39179.0,0.377517]
[1645881415772,0.013,39180.0,39179.0,0.503167]
[1645881416015,0.012,39180.0,39179.0,0.503167]
[1645881416418,0.012,39180.0,39179.0,0.477517]
[1645881416615,0.012,39180.0,39179.0,0.503167]
[1645881416815,0.013,39180.0,39179.0,0.503167]
[1645881417016,0.008,39180.0,39179.0,0.477517]
[1645881418118,0.007,39180.0,39179.0,0.477517]
[1645881418517,0.007,39180.0,39179.0,0.377517]
[1645881418717,0.008,39180.0,39179.0,0.377517]
[1645881419318,0.008,39180.0,39178.0,0.135]
[1645881420065,0.007,39180.0,39179.0,0.377517]
[1645881420269,0.007,39180.0,39178.0,0.135]
[1645881420464,0.00527371,39180.0,39178.0,0.135]
[1645881420764,0.00627371,39180.0,39178.0,0.135]
[1645881422165,0.00527371,39180.0,39178.0,0.135]
[1645881422567,0.377517,39179.0,39175.0,0.32285928]
[1645881422771,0.377517,39179.0,39178.0,0.001]
[1645881423617,0.377517,39179.0,39178.0,0.136]
[1645881424018,0.377517,39179.0,39178.0,0.135]
[1645881424218,0.377517,39179.0,39178.0,0.13]
[1645881424818,0.377517,39179.0,39178.0,0.131]
[1645881425423,0.377517,39179.0,39178.0,0.001]
[1645881425620,0.15740734,39176.0,39175.0,0.18392057]
[1645881425820,0.377517,39179.0,39175.0,0.18392057]
[1645881426022,0.00527371,39180.0,39175.0,0.18392057]
[1645881426222,0.377517,39179.0,39176.0,0.13]
[1645881426621,0.377517,39179.0,39175.0,0.31392057]
[1645881426822,0.5162863,39178.0,39176.0,0.001]
[1645881427973,0.5162863,39178.0,39175.0,0.31392057]
[1645881428170,0.377517,39177.0,39175.0,0.31392057]
[1645881428771,0.378517,39177.0,39175.0,0.31392057]
[1645881429072,0.378517,39177.0,39175.0,0.18392057]
[1645881429271,0.378517,39177.0,39174.0,0.2724]
[1645881429470,0.378517,39177.0,39170.0,0.131]
[1645881429676,0.17837084,39171.0,39170.0,0.001]
[1645881429871,0.55588784,39171.0,39170.0,0.001]
[1645881430071,0.55588784,39171.0,39166.0,0.00030488]
[1645881430273,1.02553547,39176.0,39172.0,0.01954959]
[1645881430476,0.377466,39175.0,39172.0,0.01954959]
[1645881430673,0.187569,39173.0,39172.0,0.01954959]
[1645881431527,0.47915276,39173.0,39172.0,0.01954959]
[1645881431721,0.47909388,39173.0,39172.0,0.01954959]
[1645881431920,0.47909378,39173.0,39172.0,0.01954959]
[1645881432320,1.31479378,39173.0,39172.0,0.01954959]
[1645881432522,1.41479378,39173.0,39172.0,0.01954959]
[1645881432723,1.52917969,39173.0,39172.0,0.01954959]
[1645881432921,1.77907969,39173.0,39172.0,0.01954959]
[1645881433125,1.48755491,39173.0,39172.0,0.01954959]
[1645881433320,1.47416899,39173.0,39172.0,0.01954959]
[1645881433920,1.48445813,39173.0,39172.0,0.01954959]
[1645881434120,1.48375805,39173.0,39172.0,0.01954959]
[1645881435173,1.47298365,39173.0,39172.0,0.01954959]
[1645881435573,1.48432859,39173.0,39172.0,0.01954959]
[1645881435777,1.68412859,39173.0,39172.0,0.01954959]
[1645881436774,1.68512859,39173.0,39172.0,0.01954959]
[1645881438075,1.65985014,39173.0,39172.0,0.01954959]
[1645881438279,1.62296899,39173.0,39172.0,0.01954959]
[1645881440323,1.67296899,39173.0,39172.0,0.01954959]
[1645881440525,1.68567156,39173.0,39172.0,0.01954959]
[1645881442875,1.68667156,39173.0,39172.0,0.01954959]
[1645881444074,1.68567156,39173.0,39172.0,0.01954959]
[1645881444476,0.377466,39167.0,39166.0,0.00029996]
[1645881444775,1.313166,39167.0,39166.0,0.00029996]
[1645881444974,1.32477494,39167.0,39166.0,0.00029996]
[1645881445375,1.57467494,39167.0,39157.0,0.39194627]
[1645881445578,0.7843,39158.0,39157.0,0.34194627]
[1645881445774,1.263166,39158.0,39157.0,0.34194627]
[1645881446022,1.313166,39158.0,39157.0,0.34194627]
[1645881446221,1.313166,39158.0,39157.0,0.34127432]
[1645881446222,1.308166,39158.0,39157.0,0.34127432]
[1645881446820,1.558066,39158.0,39157.0,0.34127432]
[1645881447420,1.757866,39158.0,39157.0,0.34127432]
[1645881447621,1.558066,39158.0,39157.0,0.34127432]
[1645881450574,1.55721041,39158.0,39157.0,0.34127432]
[1645881451279,1.667698,39158.0,39157.0,0.34127432]
[1645881451672,1.867498,39158.0,39157.0,0.34127432]
[1645881452275,1.868498,39158.0,39157.0,0.34127432]
[1645881452472,1.668698,39158.0,39157.0,0.34127432]
[1645881452671,1.868498,39158.0,39157.0,0.34127432]
[1645881453275,1.869498,39158.0,39157.0,0.34127432]
[1645881453526,1.868498,39158.0,39157.0,0.34127432]
[1645881453929,1.337569,39157.0,39156.0,0.00039912]
[1645881454128,2.373069,39157.0,39156.0,0.00039912]
[1645881454326,2.622969,39157.0,39156.0,0.00039912]
[1645881454725,2.62196921,39157.0,39156.0,0.00039912]
[1645881454926,2.72196921,39157.0,39156.0,6.616e-05]
[1645881455730,2.95686921,39157.0,39156.0,6.616e-05]
[1645881456028,2.96343473,39157.0,39156.0,6.616e-05]
[1645881456432,0.7843,39156.0,39155.0,0.00033297]
[1645881456628,1.61316599,39156.0,39155.0,0.00033297]
[1645881456828,2.39874542,39156.0,39155.0,0.00033297]
[1645881457028,0.06392005,39154.0,39136.0,0.2225]
[1645881457284,0.7843,39144.0,39136.0,0.2225]
[1645881457487,0.7843,39140.0,39136.0,0.2225]
[1645881457685,0.7843,39138.0,39136.0,0.2225]
[1645881457884,0.971869,39136.0,39133.0,0.3984]
[1645881458083,1.12781958,39136.0,39135.0,0.035]
[1645881458283,1.42781958,39136.0,39135.0,0.035]
[1645881458484,1.42781958,39136.0,39135.0,0.036]
[1645881458684,1.57921958,39136.0,39135.0,0.036]
[1645881458885,1.27915958,39136.0,39135.0,0.036]
[1645881459686,1.27915958,39136.0,39135.0,0.035]
[1645881460386,1.29112103,39136.0,39135.0,0.035]
[1645881460588,1.29212103,39136.0,39135.0,0.035]
[1645881461015,1.49192103,39136.0,39135.0,0.035]
[1645881461615,1.97672103,39136.0,39135.0,0.035]
[1645881461820,1.97572103,39136.0,39135.0,0.035]
[1645881462016,1.9343,39135.0,39134.0,0.00034251]
[1645881462216,0.7843,39134.0,39129.0,0.05]
[1645881462415,1.74281999,39135.0,39121.0,0.01]
[1645881462416,0.7843,39129.0,39121.0,0.01]
[1645881462616,0.7843,39125.0,39121.0,0.01]
[1645881462817,1.161766,39122.0,39121.0,0.01]
[1645881463117,1.263166,39122.0,39121.0,0.01]
[1645881463318,1.313166,39122.0,39121.0,0.01]
[1645881466571,1.315166,39122.0,39121.0,0.01]
[1645881466769,1.565066,39122.0,39121.0,0.01]
[1645881467769,1.563066,39122.0,39121.0,0.01]
[1645881468419,0.528866,39122.0,39121.0,0.01]
[1645881468619,0.478866,39122.0,39121.0,0.01]
[1645881468820,0.377466,39122.0,39121.0,0.21957057]
[1645881469023,0.001,39127.0,39125.0,0.18392057]
[1645881469220,0.001,39127.0,39126.0,0.533116]
[1645881469419,0.001,39127.0,39126.0,0.15565]
[1645881469624,0.001,39127.0,39126.0,0.533116]
[1645881469822,0.3,39138.0,39127.0,0.02565]
[1645881470019,0.3,39138.0,39126.0,0.13]
[1645881470020,0.377466,39146.0,39132.0,0.02565]
[1645881470221,0.377466,39144.0,39136.0,0.31392057]
[1645881470620,0.971869,39142.0,39136.0,0.31392057]
[1645881471021,0.14865844,39139.0,39132.0,0.31425091]
[1645881471223,0.677466,39138.0,39132.0,0.31425091]
[1645881471623,1.461766,39138.0,39132.0,0.31425091]
[1645881471824,1.461766,39138.0,39132.0,0.31392057]
[1645881472024,0.677466,39138.0,39132.0,0.31425089]
[1645881472470,0.001,39138.0,39132.0,0.31425089]
[1645881472665,0.377466,39137.0,39132.0,0.31425089]
[1645881472867,0.001,39138.0,39132.0,0.33990089]
[1645881473067,0.001,39138.0,39132.0,0.15565]
[1645881473266,0.001,39138.0,39132.0,0.33990089]
[1645881473466,0.001,39138.0,39136.0,0.31392057]
[1645881473667,0.001,39138.0,39132.0,0.33990089]
[1645881474266,0.001,39138.0,39132.0,0.33957057]
[1645881474467,0.377466,39137.0,39132.0,0.33989015]
[1645881474667,0.377466,39137.0,39132.0,0.34089015]
[1645881475469,0.377466,39137.0,39132.0,0.34057057]
[1645881475670,0.377466,39139.0,39132.0,0.34089015]
[1645881475934,0.377466,39139.0,39132.0,0.33989015]
[1645881476127,0.377466,39138.0,39132.0,0.33989015]
[1645881476327,0.377466,39137.0,39132.0,0.33989015]
[1645881476526,0.378466,39139.0,39132.0,0.33989015]
[1645881476727,0.378466,39139.0,39132.0,0.33957057]
[1645881476927,0.001,39139.0,39132.0,0.02596958]
[1645881477928,0.377466,39139.0,39132.0,0.33957057]
[1645881478130,0.16655112,39140.0,39132.0,0.33957057]
[1645881478131,0.377466,39138.0,39132.0,0.33989088]
[1645881478528,0.377466,39138.0,39132.0,0.34089088]
[1645881478929,0.377466,39138.0,39132.0,0.31524088]
[1645881479129,0.377466,39138.0,39132.0,0.31492057]
[1645881479330,0.377466,39138.0,39132.0,0.34089088]
[1645881479532,0.377466,39139.0,39132.0,0.34089088]
[1645881479767,0.16655112,39140.0,39132.0,0.33989088]
[1645881479965,0.377466,39139.0,39132.0,0.33989088]
[1645881480171,0.377466,39139.0,39136.0,0.31392057]
[1645881480365,0.377466,39139.0,39127.0,0.7104]
[1645881480567,0.377466,39139.0,39132.0,0.00132031]
[1645881480765,0.16655112,39140.0,39132.0,0.00132031]
[1645881481168,0.377466,39139.0,39132.0,0.31524088]
[1645881481469,1.18718933,39142.0,39141.0,0.33310223]
[1645881481869,0.40288933,39142.0,39141.0,0.33310223]
[1645881482469,0.237569,39142.0,39141.0,0.33310223]
[1645881482675,0.001,39142.0,39141.0,0.33310223]
[1645881482871,0.001,39142.0,39141.0,0.6470228]
[1645881484128,0.377466,39146.0,39141.0,0.33310223]
[1645881484527,0.002,39142.0,39141.0,0.33310223]
[1645881485128,0.002,39142.0,39141.0,0.5170228]
[1645881485929,0.002,39142.0,39141.0,0.33310223]
[1645881485930,0.377466,39142.0,39141.0,0.33310223]
[1645881486528,0.378466,39142.0,39141.0,0.33310223]
[1645881487769,0.377466,39142.0,39141.0,0.33310223]
[1645881488369,0.677466,39142.0,39141.0,0.33310223]
[1645881488570,0.729466,39142.0,39141.0,0.33310223]
[1645881488769,1.513766,39142.0,39141.0,0.33310223]
[1645881489170,0.729466,39142.0,39141.0,0.33310223]
[1645881489368,0.429466,39142.0,39141.0,0.33310223]
[1645881489570,0.729466,39142.0,39141.0,0.33310223]
[1645881489770,1.511766,39142.0,39141.0,0.33310223]
[1645881489970,1.561766,39142.0,39141.0,0.33310223]
[1645881490372,1.261766,39142.0,39141.0,0.33310223]
[1645881490576,1.263766,39142.0,39141.0,0.33310223]
[1645881490773,1.19122358,39142.0,39141.0,0.33310223]
[1645881491030,1.49122358,39142.0,39141.0,0.33310223]
[1645881491232,1.50667578,39142.0,39141.0,0.33310223]
[1645881491432,1.50167578,39142.0,39141.0,0.33310223]
[1645881491632,1.1792182,39142.0,39141.0,0.33310223]
[1645881491835,1.4772182,39142.0,39141.0,0.33310223]
[1645881492235,1.5272182,39142.0,39141.0,0.33310223]
[1645881493238,1.5772182,39142.0,39141.0,0.33310223]
[1645881493434,1.2772182,39142.0,39141.0,0.33310223]
[1645881493733,0.4929182,39142.0,39141.0,0.33310223]
[1645881494532,0.4939182,39142.0,39141.0,0.33310223]
[1645881494775,1.2782182,39142.0,39141.0,0.33310223]
[1645881495777,1.2772182,39142.0,39141.0,0.33310223]
[1645881496175,0.4929182,39142.0,39141.0,0.33310223]
[1645881496575,0.4939182,39142.0,39141.0,0.33310223]
[1645881497175,0.7939182,39142.0,39141.0,0.33310223]
[1645881497375,1.5782182,39142.0,39141.0,0.33310223]
[1645881497976,1.5772182,39142.0,39141.0,0.33310223]
[1645881498176,1.57680179,39142.0,39141.0,0.33310223]
[1645881498629,1.57780179,39142.0,39141.0,0.33310223]
[1645881499928,1.57680179,39142.0,39141.0,0.33310223]
[1645881500530,1.57780179,39142.0,39141.0,0.33310223]
[1645881500834,1.27780179,39142.0,39141.0,0.33310223]
[1645881501433,1.27780179,39142.0,39141.0,0.19310223]
[1645881502035,1.27680179,39142.0,39141.0,0.19310223]
[1645881502286,0.3929182,39142.0,39141.0,0.19310223]
[1645881504283,0.3929182,39142.0,39141.0,0.18310223]
[1645881504884,0.0154522,39142.0,39141.0,0.31310223]
[1645881505085,5.22e-05,39142.0,39141.0,0.31310223]
[1645881505286,0.00136911,39153.0,39148.0,0.20957057]
[1645881505287,0.377466,39152.0,39148.0,0.20957057]
[1645881505488,0.11783604,39163.0,39152.0,1.81623057]
[1645881505687,0.11783604,39163.0,39154.0,0.13]
[1645881505688,0.377466,39162.0,39154.0,0.13]
[1645881505924,0.37780819,39162.0,39156.0,0.02565]
[1645881506322,0.53565715,39162.0,39156.0,0.02565]
[1645881506523,0.53765715,39162.0,39156.0,0.02565]
[1645881506723,0.53731496,39162.0,39156.0,0.02565]
[1645881506925,0.377466,39161.0,39157.0,0.13]
[1645881507525,0.002,39162.0,39157.0,0.13]
[1645881507926,0.377466,39161.0,39157.0,0.13]
[1645881508128,0.377466,39161.0,39153.0,0.02565]
[1645881508129,0.377466,39161.0,39153.0,0.02599234]
[1645881508426,0.0010113,39163.0,39160.0,0.31392057]
[1645881508427,0.377466,39162.0,39160.0,0.31392057]
[1645881508631,0.0010113,39163.0,39160.0,0.31392057]
[1645881509429,0.0010113,39163.0,39160.0,0.20957057]
[1645881509683,0.0010113,39163.0,39162.0,0.13]
[1645881509874,0.0010113,39163.0,39162.0,0.25565]
[1645881510074,0.00144226,39164.0,39162.0,0.633116]
[1645881510277,0.0013688,39171.0,39165.0,0.02565]
[1645881510479,0.14986573,39176.0,39167.0,0.13]
[1645881510480,0.0022,39176.0,39167.0,0.13]
[1645881510674,0.041,39169.0,39168.0,0.18392057]
[1645881511279,0.377466,39175.0,39168.0,1.35957057]
[1645881511678,0.377466,39175.0,39173.0,0.13]
[1645881511875,0.0022,39176.0,39175.0,0.18392057]
[1645881512076,0.0022,39177.0,39175.0,0.18392057]
[1645881512077,0.377466,39177.0,39175.0,0.18392057]
[1645881512276,0.0021,39178.0,39173.0,0.61]
[1645881512478,0.377466,39177.0,39174.0,0.13]
[1645881512679,0.377466,39177.0,39175.0,0.001]
[1645881513924,0.377466,39177.0,39174.0,0.13]
[1645881514119,0.33102314,39175.0,39174.0,0.13]
[1645881514519,0.187569,39175.0,39174.0,0.13]
[1645881515820,0.187569,39175.0,39173.0,0.18392057]
[1645881516020,0.34675617,39175.0,39173.0,0.18392057]
[1645881516221,0.377466,39174.0,39173.0,0.18392057]
[1645881516621,0.15918717,39175.0,39173.0,0.18392057]
[1645881516821,0.377466,39174.0,39173.0,0.18392057]
[1645881518970,0.15952965,39175.0,39167.0,0.23]
[1645881519166,0.377466,39174.0,39169.0,0.13]
[1645881520167,0.00034249,39173.0,39167.0,0.54392057]
[1645881520367,0.00034249,39173.0,39168.0,0.001]
[1645881521122,0.187569,39172.0,39168.0,0.001]
[1645881521526,0.187569,39172.0,39167.0,0.23]
[1645881521923,0.13169327,39169.0,39167.0,0.23]
[1645881522124,0.13169327,39169.0,39165.0,0.13034256]
[1645881522322,0.13169327,39169.0,39165.0,0.13]
[1645881522523,0.00034248,39173.0,39165.0,0.00034255]
[1645881522723,0.37780848,39173.0,39172.0,0.13]
[1645881523121,0.37780848,39173.0,39165.0,0.00034255]
[1645881523122,0.37780848,39173.0,39167.0,0.31392057]
[1645881523322,0.377466,39172.0,39167.0,0.18392057]
[1645881523722,0.00034249,39173.0,39165.0,0.00034256]
[1645881523924,0.00034249,39173.0,39165.0,0.40034256]
[1645881524126,0.00034249,39173.0,39170.0,0.02565]
[1645881524321,0.00034249,39173.0,39169.0,0.18392057]
[1645881524783,0.16038452,39175.0,39169.0,0.18392057]
[1645881524984,0.00034249,39173.0,39169.0,0.18392057]
[1645881525783,0.00034249,39173.0,39172.0,0.31392057]
[1645881525984,0.187569,39174.0,39172.0,0.31392057]
[1645881526184,0.16038452,39175.0,39167.0,0.18392057]
[1645881526185,0.00034249,39173.0,39167.0,0.18392057]
[1645881526585,0.37880849,39173.0,39172.0,0.31392057]
[1645881526791,0.00134249,39173.0,39167.0,0.001]
[1645881527087,0.377466,39172.0,39168.0,0.18392057]
[1645881527287,0.001,39173.0,39168.0,0.18392057]
[1645881527488,0.14324395,39169.0,39168.0,0.18392057]
[1645881528423,0.14324395,39169.0,39168.0,0.18492057]
[1645881529722,0.14324395,39169.0,39168.0,0.18392057]
[1645881529922,0.00033567,39173.0,39168.0,0.18392057]
[1645881530321,0.00033567,39173.0,39170.0,0.13]
[1645881530725,0.377466,39177.0,39171.0,0.18392057]
[1645881530922,0.187569,39174.0,39171.0,0.18392057]
[1645881531124,0.00033567,39173.0,39171.0,0.18392057]
[1645881531929,0.186693,39174.0,39171.0,0.18392057]
[1645881532170,0.18701212,39174.0,39171.0,0.18392057]
[1645881532376,0.18701212,39174.0,39170.0,0.13]
[1645881532672,0.18801212,39174.0,39170.0,0.13]
[1645881533076,0.187693,39174.0,39170.0,0.13]
[1645881533776,0.186693,39174.0,39170.0,0.13]
[1645881534579,0.186693,39174.0,39170.0,0.131]
[1645881535176,0.15809814,39174.0,39170.0,0.131]
[1645881535676,0.15809814,39174.0,39170.0,0.13]
[1645881535939,0.15809814,39174.0,39169.0,0.18392057]
[1645881535940,0.1998,39171.0,39166.0,0.2278]
[1645881536137,0.377446,39170.0,39166.0,0.2278]
[1645881536738,0.16265508,39169.0,39166.0,0.2278]
[1645881536941,0.158095,39168.0,39166.0,0.2278]
[1645881537340,0.16265508,39169.0,39161.0,0.001]
[1645881537640,0.16265508,39169.0,39165.0,0.18392057]
[1645881537839,0.16265508,39169.0,39164.0,0.18392057]
[1645881538039,0.158074,39167.0,39164.0,0.18392057]
[1645881538240,0.377467,39168.0,39159.0,0.496]
[1645881538442,0.16365508,39169.0,39161.0,0.13]
[1645881538642,0.16365508,39169.0,39160.0,0.31392057]
[1645881539243,0.16365508,39169.0,39160.0,0.13]
[1645881539244,0.14227495,39163.0,39160.0,0.13]
[1645881539878,0.001,39169.0,39160.0,0.13]
[1645881540379,0.377467,39170.0,39160.0,0.31392057]
[1645881540578,0.377467,39170.0,39163.0,0.00034269]
[1645881540979,0.158074,39166.0,39163.0,0.00034269]
[1645881541280,0.15528459,39167.0,39163.0,0.00034269]
[1645881541683,0.377467,39166.0,39160.0,0.31392057]
[1645881541879,0.15528459,39167.0,39163.0,0.00034269]
[1645881542080,0.377467,39166.0,39163.0,0.00034269]
[1645881542284,0.15528459,39167.0,39163.0,0.00034269]
[1645881542480,0.377467,39166.0,39163.0,0.00034269]
[1645881542680,0.15628459,39167.0,39163.0,0.00034269]
[1645881542881,0.377467,39166.0,39160.0,0.31392057]
[1645881543081,0.15628459,39167.0,39163.0,0.00034269]
[1645881543281,0.377467,39166.0,39163.0,0.00034269]
[1645881543521,0.001,39167.0,39165.0,0.13]
[1645881543727,0.23524258,39175.0,39165.0,0.13]
[1645881543728,0.11682474,39174.0,39165.0,0.13]
[1645881543923,0.11682474,39174.0,39169.0,0.18392057]
[1645881543924,0.158074,39174.0,39169.0,0.18392057]
[1645881544329,0.00034259,39175.0,39172.0,0.13]
[1645881544521,0.377467,39174.0,39173.0,0.18392057]
[1645881545123,0.15737336,39175.0,39173.0,0.18392057]
[1645881545324,0.53449777,39175.0,39174.0,0.13]
[1645881545525,0.53484039,39175.0,39174.0,0.13]
[1645881545723,0.53463766,39175.0,39174.0,0.13]
[1645881546324,0.53429504,39175.0,39174.0,0.13]
[1645881546524,0.53429504,39175.0,39174.0,0.131]
[1645881547777,0.53387603,39175.0,39174.0,0.13]
[1645881547980,0.00034261,39176.0,39174.0,0.13]
[1645881548379,0.00134261,39178.0,39174.0,0.18]
[1645881548581,0.00024261,39179.0,39178.0,0.13]
[1645881550682,0.00024261,39179.0,39178.0,0.131]
[1645881550926,0.00024261,39179.0,39178.0,0.15665]
[1645881551326,0.00024261,39179.0,39178.0,0.19462618]
[1645881551526,0.0022,39183.0,39182.0,0.02163263]
[1645881552526,0.0022,39183.0,39182.0,0.02263263]
[1645881552926,0.00144257,39184.0,39182.0,0.50263263]
[1645881553828,0.0011,39184.0,39182.0,0.50163263]
[1645881554226,0.0011,39184.0,39182.0,0.59655263]
[1645881554680,0.0011,39184.0,39182.0,0.59755263]
[1645881555076,0.0033,39200.0,39183.0,0.32565]
[1645881555286,0.2499,39194.0,39185.0,0.88085057]
[1645881555475,0.2499,39194.0,39185.0,1.28225057]
[1645881555677,0.2409,39194.0,39186.0,1.553117]
[1645881555876,0.2409,39194.0,39190.0,0.02565]
[1645881556076,0.2409,39194.0,39193.0,0.377467]
[1645881556277,0.2409,39194.0,39193.0,0.71703757]
[1645881556476,0.00566893,39198.0,39196.0,0.31392057]
[1645881556879,0.00566893,39198.0,39196.0,0.36392057]
[1645881557075,0.0033,39200.0,39197.0,0.32565]
[1645881557076,0.00543107,39199.0,39197.0,0.32565]
[1645881557277,0.00543107,39199.0,39198.0,0.13]
[1645881557475,0.00553767,39199.0,39198.0,0.20705]
[1645881557677,0.0033,39200.0,39198.0,0.20705]
[1645881557982,0.0033,39200.0,39198.0,0.1814]
[1645881558176,0.00288377,39200.0,39198.0,0.1814]
[1645881559724,0.00288377,39200.0,39198.0,0.22016756]
[1645881560425,0.00288377,39200.0,39198.0,0.1814]
[1645881560630,0.00288377,39200.0,39198.0,0.1824]
[1645881561825,0.00288377,39200.0,39198.0,0.1814]
[1645881562027,0.00288377,39200.0,39198.0,0.13]
[1645881562685,0.00288377,39200.0,39198.0,0.131]
[1645881563484,0.00288377,39200.0,39198.0,0.001]
[1645881563786,0.158074,39199.0,39198.0,0.001]
[1645881563984,0.00288377,39200.0,39194.0,0.13]
[1645881564288,0.00288377,39200.0,39189.0,0.13]
[1645881564289,1.161767,39199.0,39189.0,0.13]
[1645881564489,0.7843,39198.0,39189.0,0.13]
[1645881564684,0.68344921,39199.0,39195.0,0.0003305]
[1645881564685,1.161767,39196.0,39195.0,0.0003305]
[1645881565184,1.6162097,39196.0,39195.0,0.0003305]
[1645881565383,1.64024858,39196.0,39195.0,0.0003305]
[1645881565584,1.69164858,39196.0,39195.0,0.0003305]
[1645881565953,1.69164858,39196.0,39194.0,0.00033051]
[1645881565954,0.992374,39195.0,39194.0,0.00033051]
[1645881566348,1.493474,39195.0,39194.0,0.00033051]
[1645881566549,1.543474,39195.0,39194.0,5.1e-07]
[1645881566754,1.85318952,39195.0,39194.0,5.1e-07]
[1645881566950,1.86388539,39195.0,39182.0,0.02163263]
[1645881567150,1.161767,39186.0,39182.0,0.02163263]
[1645881567350,1.211767,39186.0,39182.0,0.02163263]
[1645881567650,0.158074,39184.0,39182.0,0.02163263]
[1645881567850,0.47746699,39183.0,39182.0,0.02163263]
[1645881568051,0.52746699,39183.0,39182.0,0.02163263]
[1645881568453,1.31176699,39183.0,39182.0,0.02163263]
[1645881568853,1.56296699,39183.0,39182.0,0.02163263]
[1645881569252,0.77866699,39183.0,39182.0,0.02163263]
[1645881569460,0.97846699,39183.0,39182.0,0.02163263]
[1645881569685,1.36316699,39183.0,39182.0,0.02163263]
[1645881569886,1.61306699,39183.0,39182.0,0.02163263]
[1645881571089,1.81286699,39183.0,39182.0,0.02163263]
[1645881572287,1.02856699,39183.0,39182.0,0.02163263]
[1645881572487,1.61306699,39183.0,39182.0,0.02163263]
[1645881572886,0.82876699,39183.0,39182.0,0.02163263]
[1645881573528,1.32856699,39183.0,39182.0,0.02163263]
[1645881575329,2.11286699,39183.0,39182.0,0.02163263]
[1645881576027,1.32856699,39183.0,39182.0,0.02163263]
[1645881576234,2.11286699,39183.0,39182.0,0.02163263]
[1645881577029,1.32856699,39183.0,39182.0,0.02163263]
[1645881577676,0.978667,39183.0,39182.0,0.02163263]
[1645881578576,0.978667,39183.0,39182.0,0.02118503]
[1645881579576,0.977967,39183.0,39182.0,0.02118503]
[1645881581524,2.11216699,39183.0,39182.0,0.02118503]
[1645881584779,2.11873251,39183.0,39182.0,0.02118503]
[1645881585179,2.36278646,39183.0,39182.0,0.02118503]
[1645881586278,2.56258646,39183.0,39182.0,0.02118503]
[1645881586677,2.57758646,39183.0,39182.0,0.02118503]
[1645881587077,2.47778646,39183.0,39182.0,0.02118503]
[1645881587276,2.67758646,39183.0,39182.0,0.02118503]
[1645881587677,2.47778646,39183.0,39182.0,0.02118503]
[1645881587879,2.67758646,39183.0,39182.0,0.02118503]
[1645881589229,2.67458646,39183.0,39182.0,0.02118503]
[1645881589428,2.47478646,39183.0,39182.0,0.02118503]
[1645881589628,2.67458646,39183.0,39182.0,0.02118503]
[1645881590036,0.9994,39183.0,39182.0,0.02118503]
[1645881590239,0.7495,39183.0,39182.0,0.15118503]
[1645881590429,0.00034206,39199.0,39183.0,1.15]
[1645881590631,0.00034206,39199.0,39186.0,0.12565]
[1645881590830,0.377467,39198.0,39191.0,0.18392057]
[1645881591032,0.158074,39197.0,39192.0,0.3]
[1645881591232,0.377467,39199.0,39197.0,0.31392057]
[1645881591432,0.37762508,39199.0,39197.0,0.31392057]
[1645881591734,0.607874,39198.0,39197.0,0.31392057]
[1645881591930,0.827267,39198.0,39197.0,0.31392057]
[1645881592179,0.607874,39198.0,39197.0,0.31392057]
[1645881593380,0.377467,39197.0,39194.0,0.0514]
[1645881595684,0.1998,39195.0,39194.0,0.0514]
[1645881595929,0.607774,39195.0,39194.0,0.0514]
[1645881596532,0.377467,39194.0,39192.0,0.31424596]
[1645881597039,0.377467,39194.0,39192.0,0.18392057]
[1645881597234,0.377467,39194.0,39191.0,0.00032539]
[1645881597630,0.4497,39195.0,39189.0,0.0514]
[1645881597631,0.4497,39192.0,39190.0,0.12987799]
[1645881597832,0.4497,39192.0,39189.0,0.0514]
[1645881598031,1.161767,39197.0,39189.0,0.0514]
[1645881599033,0.16431714,39192.0,39189.0,0.0514]
[1645881599691,0.377467,39191.0,39189.0,0.05171997]
[1645881599888,0.377467,39191.0,39189.0,0.00031997]
[1645881600286,0.942374,39190.0,39189.0,0.00031997]
[1645881600688,0.7843,39188.0,39184.0,0.2377]
[1645881600986,0.05,39186.0,39184.0,0.2377]
[1645881601186,0.377467,39185.0,39184.0,0.001]
[1645881601388,0.377467,39185.0,39182.0,0.02118503]
[1645881601586,0.15033664,39184.0,39182.0,0.02118503]
[1645881601785,0.15773027,39183.0,39182.0,0.02118503]
[1645881601985,0.15773027,39183.0,39182.0,0.02150502]
[1645881602988,0.15773027,39183.0,39182.0,0.02118503]
[1645881603634,0.99203027,39183.0,39182.0,0.02118503]
[1645881603836,1.04203027,39183.0,39182.0,0.02118503]
[1645881604035,1.04203027,39183.0,39182.0,0.02218503]
[1645881604036,1.34203027,39183.0,39182.0,0.02218503]
[1645881605536,1.34203027,39183.0,39182.0,0.02118503]
[1645881605736,1.04203027,39183.0,39182.0,0.02118503]
[1645881605936,1.34203027,39183.0,39182.0,0.02118503]